bitfinex-derivatives/quotes_SOLF0:USTF0_20260204
["timestamp","ask_amount","ask_price","bid_price","bid_amount"]
[1770222942257,3.76868076,91.711,91.657,9.8339]
[1770222942455,3.76868076,91.711,91.636,2.20331762]
[1770222942658,3.76868076,91.73,91.638,1.60462106]
[1770222942858,3.76868076,91.72,91.638,1.60462106]
[1770222943449,3.76868076,91.709,91.662,9.8334]
[1770222943954,13.59778076,91.703,91.649,9.8348]
[1770222944154,3.76868076,91.745,91.649,1.60462106]
[1770222944559,9.8247,91.744,91.685,9.8309]
[1770222944758,9.8247,91.744,91.674,1.36013501]
[1770222944958,3.76868076,91.743,91.63,1.36013501]
[1770222945452,9.8266,91.726,91.671,9.8325]
[1770222945659,3.76868076,91.725,91.671,9.8325]
[1770222946058,3.76868076,91.716,91.659,9.8337]
[1770222947060,3.76868076,91.706,91.65,9.8347]
[1770222947563,3.76868076,91.706,91.646,9.8351]
[1770222947564,9.8301,91.694,91.646,9.8351]
[1770222947952,9.8301,91.694,91.631,177.62]
[1770222948157,3.76868076,91.702,91.645,9.8352]
[1770222948559,3.76868076,91.702,91.63,1.44791701]
[1770222948756,13.59888076,91.693,91.636,9.8362]
[1770222949368,9.8305,91.69,91.636,9.8362]
[1770222949560,3.76868076,91.689,91.609,1.45417269]
[1770222950060,3.76868076,91.689,91.64,0.06905994]
[1770222950560,100.1,91.737,91.651,9.8346]
[1770222950561,7.83399192,91.719,91.651,9.8346]
[1770222950771,3.76868076,91.71,91.64,0.06905994]
[1770222951162,3.76868076,91.71,91.629,1.46711561]
[1770222951362,3.76868076,91.708,91.65,9.8347]
[1770222952659,3.76868076,91.705,91.648,9.8349]
[1770222952866,3.76868076,91.705,91.629,1.46711561]
[1770222953062,3.76868076,91.705,91.648,9.8349]
[1770222953565,3.76868076,91.703,91.639,9.8359]
[1770222954166,3.93087284,91.699,91.641,9.8356]
[1770222954467,3.93087284,91.699,91.662,0.06897222]
[1770222955863,7.42297903,91.74,91.662,0.06897222]
[1770222956067,7.42297903,91.76,91.662,3.93595335]
[1770222956267,9.8232,91.758,91.662,3.93595335]
[1770222956567,7.83567649,91.757,91.664,3.86698113]
[1770222956765,9.8235,91.755,91.699,9.8294]
[1770222956968,7.42297903,91.78,91.684,3.86698113]
[1770222957159,7.83993304,91.779,91.684,3.86698113]
[1770222957360,9.8233,91.758,91.693,9.8301]
[1770222957767,9.8233,91.758,91.684,3.86698113]
[1770222958065,3.93087284,91.759,91.71,9.8282]
[1770222959066,3.93087284,91.759,91.666,3.83848287]
[1770222959562,7.42297903,91.8,91.706,3.83848287]
[1770222959563,3.9617543,91.789,91.706,3.83848287]
[1770222959967,3.9617543,91.789,91.695,87.06]
[1770222960173,3.9617543,91.789,91.687,3.83848287]
[1770222960174,3.9617543,91.767,91.708,9.8285]
[1770222960373,3.9617543,91.767,91.687,3.83848287]
[1770222960569,3.9617543,91.799,91.687,3.83848287]
[1770222960772,3.9617543,91.792,91.687,3.83848287]
[1770222961270,3.9617543,91.761,91.687,3.83848287]
[1770222961470,3.9617543,91.761,91.629,20.24951966]
[1770222961471,3.9617543,91.739,91.632,3.83848287]
[1770222961872,3.9617543,91.739,91.667,3.83848287]
[1770222962267,3.9617543,91.739,91.686,9.8308]
[1770222962573,3.9617543,91.719,91.623,3.83848287]
[1770222962765,32.6,91.757,91.623,3.83848287]
[1770222962766,3.9617543,91.699,91.623,3.83848287]
[1770222962964,3.9617543,91.683,91.623,3.83848287]
[1770222963269,3.9617543,91.683,91.567,13.49967977]
[1770222963270,3.9617543,91.683,91.58,3.83848287]
[1770222963474,3.9617543,91.683,91.586,3.83848287]
[1770222963673,3.9617543,91.68,91.607,3.83848287]
[1770222963877,3.9617543,91.679,91.607,3.83848287]
[1770222964369,3.9617543,91.679,91.542,19.6927]
[1770222964370,3.9617543,91.659,91.577,1.89906057]
[1770222964569,3.9617543,91.639,91.531,3.83848287]
[1770222964767,3.9617543,91.63,91.56,9.8443]
[1770222965365,3.9617543,91.63,91.531,3.83848287]
[1770222965366,3.9617543,91.625,91.546,9.8459]
[1770222965568,3.9617543,91.625,91.547,3.83848287]
[1770222966070,3.9617543,91.625,91.527,1.89992111]
[1770222966071,3.9617543,91.647,91.554,3.83848287]
[1770222966270,3.9617543,91.647,91.516,153.208]
[1770222966271,3.9617543,91.629,91.533,3.83848287]
[1770222966576,9.84,91.601,91.521,9.8486]
[1770222966772,3.9617543,91.6,91.521,9.8486]
[1770222967079,3.9617543,91.6,91.497,1.90053849]
[1770222967080,3.9617543,91.6,91.526,9.848]
[1770222967277,3.9617543,91.6,91.522,3.83848287]
[1770222968072,3.9617543,91.6,91.524,3.83848287]
[1770222968773,3.9617543,91.597,91.498,3.83848287]
[1770222969179,3.9617543,91.597,91.497,1.90073572]
[1770222969180,9.8406,91.596,91.522,9.8485]
[1770222969482,3.9617543,91.597,91.523,3.83848287]
[1770222970578,3.9617543,91.597,91.539,9.8466]
[1770222970981,3.9617543,91.643,91.555,3.83848287]
[1770222971181,3.9617543,91.639,91.555,3.83848287]
[1770222971579,9.838,91.62,91.555,3.83848287]
[1770222971783,13.7997543,91.62,91.555,3.83848287]
[1770222971977,3.9617543,91.62,91.556,9.8448]
[1770222972184,3.9617543,91.62,91.511,3.83848287]
[1770222972882,3.9617543,91.62,91.545,3.83848287]
[1770222973277,3.9617543,91.62,91.564,9.8439]
[1770222973680,3.9617543,91.62,91.545,3.83848287]
[1770222973885,3.9617543,91.62,91.551,9.8454]
[1770222974485,3.9617543,91.617,91.551,9.8454]
[1770222974685,3.9617543,91.617,91.525,3.83848287]
[1770222975077,3.9617543,91.604,91.539,9.8466]
[1770222975479,3.9617543,91.626,91.525,3.83848287]
[1770222976084,3.9617543,91.626,91.55,9.8454]
[1770222976284,3.9617543,91.626,91.51,7.42297903]
[1770222976285,3.9617543,91.626,91.53,3.83848287]
[1770222976487,3.9617543,91.659,91.536,3.83848287]
[1770222976677,13.30196589,91.727,91.536,3.83848287]
[1770222976678,3.9617543,91.68,91.611,3.83848287]
[1770222977078,3.9617543,91.709,91.611,3.83848287]
[1770222977283,3.9617543,91.703,91.611,3.83848287]
[1770222977889,0.06896839,91.666,91.6,3.83848287]
[1770222978284,3.9617543,91.663,91.6,3.83848287]
[1770222978978,3.9617543,91.663,91.602,9.8398]
[1770222979582,3.9617543,91.663,91.6,3.83848287]
[1770222979583,13.7951543,91.663,91.6,3.83848287]
[1770222979781,0.06992404,91.642,91.6,3.83848287]
[1770222980587,0.06992404,91.642,91.606,9.8394]
[1770222980977,0.06992404,91.642,91.566,3.83848287]
[1770222981177,0.06992404,91.642,91.588,9.8413]
[1770222981391,3.9617543,91.647,91.588,9.8413]
[1770222981685,3.9617543,91.647,91.566,3.83848287]
[1770222981882,3.9617543,91.667,91.588,3.83848287]
[1770222982082,3.9617543,91.659,91.542,3.83848287]
[1770222982487,3.9617543,91.659,91.529,87.12]
[1770222982488,3.9617543,91.636,91.552,3.83848287]
[1770222983189,3.9617543,91.631,91.553,9.8451]
[1770222983588,3.9617543,91.631,91.554,3.83848287]
[1770222983589,0.0698328,91.603,91.554,3.83848287]
[1770222984192,0.0698328,91.603,91.54,3.66903697]
[1770222984691,3.85572868,91.603,91.54,3.66903697]
[1770222984891,3.85572868,91.603,91.499,176.5]
[1770222984892,3.85572868,91.601,91.518,3.66903697]
[1770222985491,0.06978339,91.569,91.518,3.66903697]
[1770222985887,0.06978339,91.569,91.523,3.66903697]
[1770222986089,3.85572868,91.601,91.523,3.66903697]
[1770222986591,3.85572868,91.621,91.552,9.8452]
[1770222986788,7.42297903,91.64,91.51,7.42297903]
[1770222986789,3.85572868,91.643,91.553,3.66903697]
[1770222987192,7.42297903,91.66,91.553,3.66903697]
[1770222987193,3.85572868,91.636,91.567,9.8436]
[1770222987393,3.85572868,91.636,91.553,3.66903697]
[1770222987890,3.85572868,91.609,91.531,3.66903697]
[1770222988591,3.85572868,91.606,91.511,3.66903697]
[1770222988786,3.85572868,91.599,91.511,3.66903697]
[1770222989191,9.8426,91.578,91.511,3.66903697]
[1770222989395,3.85572868,91.577,91.499,9.8509]
[1770222989689,3.85572868,91.577,91.477,1.90105241]
[1770222989690,3.85572868,91.539,91.401,153.4021]
[1770222989890,153.1048,91.579,91.38,7.42297903]
[1770222989891,3.85572868,91.519,91.38,7.42297903]
[1770222990195,3.85572868,91.519,91.417,1.90252303]
[1770222990392,3.85572868,91.517,91.438,9.8574]
[1770222990591,3.85572868,91.517,91.421,87.14]
[1770222990990,3.85572868,91.514,91.38,7.42297903]
[1770222991195,3.85572868,91.514,91.381,87.76]
[1770222991385,3.85572868,91.514,91.407,1.90263745]
[1770222991589,3.85572868,91.514,91.441,9.8572]
[1770222991991,3.85572868,91.514,91.407,1.90263745]
[1770222991992,3.85572868,91.536,91.47,3.66903697]
[1770222992196,3.85572868,91.569,91.47,3.66903697]
[1770222992401,3.85572868,91.528,91.411,3.66903697]
[1770222992688,3.85572868,91.528,91.453,3.66903697]
[1770222993695,9.8481,91.526,91.458,9.8553]
[1770222993890,3.85572868,91.525,91.458,9.8553]
[1770222994193,9.849,91.518,91.453,3.66903697]
[1770222995395,3.85572868,91.525,91.453,3.66903697]
[1770222995895,9.8484,91.524,91.453,3.66903697]
[1770222996399,3.85572868,91.559,91.453,3.66903697]
[1770222996795,3.85572868,91.535,91.453,3.66903697]
[1770222997794,3.85572868,91.529,91.443,3.66903697]
[1770222998592,3.85572868,91.529,91.422,3.66903697]
[1770222999101,3.85572868,91.529,91.407,1.90263745]
[1770222999102,3.85572868,91.529,91.431,3.66903697]
[1770222999304,3.85572868,91.55,91.461,3.66903697]
[1770222999999,3.85572868,91.548,91.44,3.66903697]
[1770223000198,3.85572868,91.529,91.44,3.66903697]
[1770223000598,3.85572868,91.515,91.453,9.8559]
[1770223000797,3.85572868,91.515,91.44,3.66903697]
[1770223001096,162.96608523,91.614,91.487,9.8523]
[1770223001097,3.85572868,91.536,91.487,9.8523]
[1770223001298,3.85572868,91.536,91.441,3.66903697]
[1770223001693,3.85572868,91.535,91.463,9.8548]
[1770223002290,3.85572868,91.535,91.441,3.66903697]
[1770223002291,3.85572868,91.535,91.473,9.8537]
[1770223002494,3.85572868,91.569,91.441,3.66903697]
[1770223002699,3.85572868,91.567,91.492,9.8517]
[1770223002902,3.85572868,91.567,91.482,3.66903697]
[1770223003397,3.85572868,91.567,91.503,3.66903697]
[1770223003802,3.85572868,91.587,91.519,9.8488]
[1770223004005,3.85572868,91.587,91.503,3.66903697]
[1770223004501,7.45450134,91.63,91.511,3.66903697]
[1770223004502,3.85572868,91.607,91.511,3.66903697]
[1770223004892,3.85572868,91.607,91.492,175.96]
[1770223004893,3.85572868,91.607,91.533,3.66903697]
[1770223005099,3.85572868,91.607,91.493,3.66903697]
[1770223005300,3.85572868,91.607,91.495,3.66903697]
[1770223005502,3.85572868,91.568,91.515,9.8492]
[1770223005703,3.85572868,91.568,91.541,0.0688492]
[1770223006205,9.8438,91.567,91.541,0.0688492]
[1770223006404,9.8438,91.567,91.505,9.8503]
[1770223006600,3.85572868,91.568,91.495,3.66903697]
[1770223006905,3.85572868,91.568,91.497,3.66903697]
[1770223007407,3.85572868,91.568,91.502,9.8506]
[1770223007900,3.85572868,91.568,91.464,169.88]
[1770223007901,3.85572868,91.557,91.492,9.8516]
[1770223008102,3.85572868,91.557,91.477,3.66903697]
[1770223008608,3.85572868,91.555,91.491,9.8518]
[1770223008808,3.85572868,91.555,91.477,3.66903697]
[1770223009407,3.85572868,91.552,91.49,9.8519]
[1770223011005,13.70202868,91.543,91.479,9.8531]
[1770223011210,3.85572868,91.542,91.479,9.8531]
[1770223011907,9.8476,91.531,91.479,9.8531]
[1770223012110,3.85572868,91.53,91.437,3.66903697]
[1770223013014,3.85572868,91.518,91.401,3.73684708]
[1770223013209,0.5532044,91.499,91.413,3.73684708]
[1770223013614,0.5532044,91.497,91.445,9.8568]
[1770223014013,0.5532044,91.497,91.413,3.73684708]
[1770223015610,9.8522,91.489,91.428,9.8586]
[1770223016011,0.5532044,91.497,91.413,3.73684708]
[1770223016415,0.56716278,91.495,91.413,3.73684708]
[1770223017214,9.8522,91.488,91.425,9.8588]
[1770223017417,10.23112757,91.488,91.426,3.82904538]
[1770223017615,87.22,91.531,91.406,3.82904538]
[1770223017616,0.37892757,91.487,91.406,3.82904538]
[1770223017815,0.37892757,91.487,91.338,153.5068]
[1770223017816,0.37892757,91.487,91.407,3.82904538]
[1770223018020,0.06895485,91.466,91.407,3.82904538]
[1770223018616,0.37892757,91.487,91.433,9.858]
[1770223019113,9.8504,91.505,91.446,9.8567]
[1770223019320,0.36486705,91.528,91.427,3.97403767]
[1770223019915,9.8498,91.511,91.456,9.8556]
[1770223020114,0.36486705,91.528,91.452,3.97403767]
[1770223020317,0.36486705,91.55,91.482,9.8527]
[1770223020521,0.36486705,91.55,91.441,3.97403767]
[1770223021123,0.38405739,91.521,91.441,3.97403767]
[1770223021526,0.38405739,91.515,91.452,9.8559]
[1770223021823,0.38405739,91.515,91.441,3.97403767]
[1770223021824,0.38405739,91.539,91.441,3.97403767]
[1770223022513,9.849,91.518,91.457,9.8554]
[1770223022716,0.38405739,91.539,91.457,9.8554]
[1770223022922,0.38405739,91.539,91.441,3.97403767]
[1770223023118,0.34223019,91.516,91.448,9.8564]
[1770223023316,0.34223019,91.516,91.441,3.97403767]
[1770223023517,0.34223019,91.516,91.401,146.6]
[1770223023826,162.98885676,91.569,91.402,3.97403767]
[1770223023827,0.34223019,91.479,91.402,3.97403767]
[1770223024215,458.844,91.673,91.402,3.97403767]
[1770223024216,0.34223019,91.497,91.402,3.97403767]
[1770223024618,9.8514,91.495,91.427,3.97403767]
[1770223024827,0.31813786,91.517,91.427,3.97403767]
[1770223025228,0.31813786,91.517,91.431,3.97403767]
[1770223025229,9.851,91.499,91.431,3.97403767]
[1770223025916,0.31813786,91.498,91.431,3.97403767]
[1770223026127,0.31813786,91.496,91.431,3.97403767]
[1770223026519,166.31406121,91.562,91.397,1.90292876]
[1770223026520,0.31813786,91.516,91.459,9.8552]
[1770223026721,32.86756121,91.57,91.45,3.97403767]
[1770223026722,0.34084382,91.556,91.45,3.97403767]
[1770223027021,9.8481,91.526,91.458,3.97403767]
[1770223027427,7.45450134,91.56,91.458,3.97403767]
[1770223027428,0.34084382,91.535,91.458,3.97403767]
[1770223027815,9.848,91.527,91.46,9.8551]
[1770223028122,0.34084382,91.535,91.46,9.8551]
[1770223028327,0.34084382,91.535,91.458,3.97403767]
[1770223028918,0.34084382,91.535,91.46,3.99031133]
[1770223029428,0.34084382,91.535,91.472,3.99031133]
[1770223030219,0.05633288,91.533,91.452,3.99031133]
[1770223030424,0.05633288,91.531,91.452,3.99031133]
[1770223030627,0.15135248,91.529,91.452,3.99031133]
[1770223030928,9.8506,91.503,91.452,3.99031133]
[1770223031125,0.15135248,91.529,91.452,3.99031133]
[1770223031328,0.15135248,91.519,91.452,3.99031133]
[1770223031528,8.01590794,91.518,91.452,3.99031133]
[1770223031826,9.8503,91.506,91.452,3.99031133]
[1770223032231,0.15135248,91.519,91.401,3.97403767]
[1770223032426,13.18066121,91.545,91.401,3.97403767]
[1770223032427,9.8521,91.489,91.433,9.858]
[1770223032730,8.0252207,91.488,91.427,3.97403767]
[1770223032924,0.15135248,91.509,91.427,3.97403767]
[1770223033124,0.06903611,91.47,91.413,3.97403767]
[1770223033728,9.8541,91.471,91.413,3.97403767]
[1770223034032,9.86675676,91.502,91.32,3.97403767]
[1770223034033,0.13945106,91.419,91.32,3.97403767]
[1770223034229,9.8588,91.427,91.359,3.97403767]
[1770223034622,8.01696847,91.426,91.359,3.97403767]
[1770223034824,8.01696847,91.425,91.359,3.97403767]
[1770223035025,0.13945106,91.44,91.359,3.97403767]
[1770223035220,9.86675676,91.453,91.359,3.97403767]
[1770223035221,9.8599,91.417,91.359,3.97403767]
[1770223035433,0.1033837,91.438,91.359,3.97403767]
[1770223035623,0.1033837,91.436,91.335,3.97403767]
[1770223035828,0.1033837,91.419,91.335,3.97403767]
[1770223036131,0.1033837,91.439,91.335,3.97403767]
[1770223036331,9.8602,91.414,91.337,3.97403767]
[1770223036529,0.1033837,91.429,91.337,3.97403767]
[1770223036728,0.2496649,91.427,91.337,3.97403767]
[1770223036925,0.2496649,91.425,91.342,3.97403767]
[1770223037130,0.2496649,91.447,91.342,3.97403767]
[1770223037329,9.8599,91.416,91.342,3.97403767]
[1770223037536,0.2496649,91.437,91.342,3.97403767]
[1770223037736,0.2496649,91.435,91.342,3.97403767]
[1770223037924,7.98228149,91.436,91.252,20.32263029]
[1770223037925,0.2496649,91.399,91.309,3.97403767]
[1770223038227,0.2496649,91.424,91.311,3.97403767]
[1770223038434,0.2496649,91.424,91.356,3.97403767]
[1770223038835,0.40542926,91.419,91.336,3.97403767]
[1770223039129,9.8629,91.389,91.336,3.97403767]
[1770223039828,9.864,91.379,91.336,3.97403767]
[1770223040227,0.40542926,91.409,91.336,3.97403767]
[1770223040435,9.8637,91.382,91.336,3.97403767]
[1770223041232,9.8621,91.396,91.336,3.97403767]
[1770223041536,0.64419143,91.429,91.336,3.97403767]
[1770223041927,9.8606,91.411,91.342,3.97403767]
[1770223042134,0.64419143,91.429,91.342,3.97403767]
[1770223042337,19.7033,91.493,91.342,3.97403767]
[1770223042338,0.64419143,91.449,91.342,3.97403767]
[1770223042535,7.45450134,91.47,91.354,3.97403767]
[1770223042833,0.65491614,91.471,91.354,3.97403767]
[1770223043029,9.8555,91.458,91.385,3.97403767]
[1770223043226,0.65491614,91.492,91.391,3.97403767]
[1770223043430,153.1493,91.553,91.391,3.97403767]
[1770223043431,0.65491614,91.516,91.411,3.97403767]
[1770223043632,0.65491614,91.549,91.411,3.97403767]
[1770223043832,0.65406174,91.523,91.433,3.81987685]
[1770223044336,9.8502,91.507,91.433,3.81987685]
[1770223044730,0.65406174,91.523,91.433,3.81987685]
[1770223045033,9.8518,91.492,91.433,3.81987685]
[1770223045240,0.65406174,91.519,91.433,3.81987685]
[1770223045630,9.8516,91.494,91.433,3.81987685]
[1770223045935,0.65406174,91.493,91.397,3.81987685]
[1770223046339,0.65406174,91.516,91.397,3.81987685]
[1770223046737,0.7973925,91.512,91.425,3.81987685]
[1770223046927,0.7973925,91.499,91.394,3.81987685]
[1770223047334,9.8545,91.467,91.394,3.81987685]
[1770223047527,10.6518925,91.467,91.394,3.81987685]
[1770223047732,0.7973925,91.466,91.394,3.81987685]
[1770223048736,9.8546,91.465,91.394,3.81987685]
[1770223049040,7.45450134,91.48,91.394,3.81987685]
[1770223049236,7.45450134,91.52,91.401,3.81987685]
[1770223049237,0.75934211,91.51,91.401,3.81987685]
[1770223049433,0.75934211,91.51,91.437,3.81987685]
[1770223050032,9.8512,91.497,91.437,3.81987685]
[1770223050233,0.75934211,91.496,91.414,3.81987685]
[1770223050633,7.45450134,91.5,91.414,3.81987685]
[1770223050836,0.75010394,91.539,91.424,3.81987685]
[1770223051035,0.75010394,91.539,91.47,9.8541]
[1770223051236,7.45450134,91.53,91.416,3.81987685]
[1770223051440,0.75010394,91.529,91.416,3.81987685]
[1770223051644,0.75010394,91.529,91.427,3.81987685]
[1770223052137,0.75010394,91.527,91.427,3.81987685]
[1770223052338,9.8494,91.514,91.427,3.81987685]
[1770223052537,9.92171681,91.54,91.427,3.81987685]
[1770223052538,7.45450134,91.51,91.427,3.81987685]
[1770223052947,0.86490526,91.503,91.427,3.81987685]
[1770223053138,0.86490526,91.469,91.38,3.81987685]
[1770223053336,9.856,91.453,91.38,3.81987685]
[1770223054043,9.8571,91.443,91.38,3.81987685]
[1770223054240,9.8571,91.443,91.295,19.7459]
[1770223054241,0.86490526,91.409,91.314,3.81987685]
[1770223054642,0.86490526,91.409,91.297,1.90473063]
[1770223054643,9.8609,91.408,91.327,3.81987685]
[1770223054839,9.92171681,91.434,91.327,3.81987685]
[1770223054840,7.45450134,91.43,91.327,3.81987685]
[1770223055145,9.8605,91.411,91.332,3.81987685]
[1770223055444,7.45450134,91.41,91.332,3.81987685]
[1770223055641,0.9441537,91.428,91.332,3.81987685]
[1770223055947,0.9441537,91.419,91.332,3.81987685]
[1770223056145,7.45450134,91.42,91.332,3.81987685]
[1770223056146,0.9441537,91.417,91.332,3.81987685]
[1770223056440,0.9441537,91.416,91.332,3.81987685]
[1770223056642,0.82248562,91.438,91.332,3.81987685]
[1770223057038,9.8586,91.428,91.332,3.81987685]
[1770223057548,9.86,91.416,91.334,3.81987685]
[1770223057939,0.82248562,91.459,91.334,3.81987685]
[1770223058136,9.8596,91.42,91.339,3.81987685]
[1770223058337,0.82248562,91.435,91.339,3.81987685]
[1770223058635,9.8595,91.42,91.341,3.81987685]
[1770223059446,9.8595,91.42,91.346,9.8674]
[1770223059642,8.2262752,91.45,91.347,3.81987685]
[1770223059837,0.75125344,91.449,91.347,3.81987685]
[1770223060445,7.47502176,91.45,91.347,3.81987685]
[1770223060446,7.91334926,91.448,91.347,3.81987685]
[1770223060642,9.8611,91.406,91.347,3.81987685]
[1770223061844,0.65117972,91.429,91.347,3.81987685]
[1770223061845,9.8621,91.397,91.347,3.81987685]
[1770223062446,9.8609,91.408,91.347,3.81987685]
[1770223062647,0.65117972,91.429,91.347,3.81987685]
[1770223063047,9.8617,91.4,91.347,3.81987685]
[1770223063438,0.65117972,91.429,91.347,3.81987685]
[1770223063640,0.65117972,91.429,91.285,153.5973]
[1770223063641,0.64482739,91.389,91.295,3.81987685]
[1770223063845,7.47502176,91.44,91.26,27.22852176]
[1770223063846,0.64482739,91.412,91.301,3.81987685]
[1770223064039,9.8587,91.428,91.344,3.81987685]
[1770223064243,0.64482739,91.427,91.344,3.81987685]
[1770223064845,0.62520215,91.409,91.32,3.81987685]
[1770223065251,0.62520215,91.385,91.31,9.8713]
[1770223065447,0.62520215,91.385,91.26,7.47502176]
[1770223065448,0.62520215,91.385,91.311,3.81987685]
[1770223065848,9.8635,91.383,91.311,3.81987685]
[1770223066050,0.62520215,91.385,91.311,3.81987685]
[1770223066551,0.62520215,91.383,91.251,3.95554078]
[1770223066851,0.62520215,91.383,91.268,3.95554078]
[1770223067153,0.62520215,91.383,91.287,3.95554078]
[1770223067652,119.52,91.419,91.287,3.95554078]
[1770223067653,9.8663,91.357,91.287,3.95554078]
[1770223067849,0.12893811,91.357,91.242,3.95554078]
[1770223068046,0.12893811,91.357,91.248,3.95554078]
[1770223068448,9.8675,91.347,91.279,3.96303782]
[1770223068657,0.12893811,91.357,91.279,3.96303782]
[1770223069346,0.11394404,91.369,91.248,3.96303782]
[1770223069547,0.11394404,91.369,91.251,3.96303782]
[1770223069745,0.11394404,91.369,91.271,3.96303782]
[1770223070748,0.11394404,91.369,91.29,3.97331942]
[1770223071349,0.11394404,91.369,91.292,3.97331942]
[1770223072154,9.8663,91.357,91.292,3.97331942]
[1770223072450,0.11394404,91.369,91.292,3.97331942]
[1770223072651,0.11394404,91.369,91.295,3.98436876]
[1770223073147,0.11394404,91.369,91.274,3.98436876]
[1770223073352,7.90802685,91.413,91.236,3.98436876]
[1770223073353,0.07128215,91.333,91.236,3.98436876]
[1770223073654,153.4261,91.387,91.237,1.90588854]
[1770223073655,0.07128215,91.359,91.237,1.90588854]
[1770223073957,0.07128215,91.359,91.184,241.1272]
[1770223073958,0.1231301,91.317,91.238,3.96071706]
[1770223074557,9.871,91.314,91.238,3.96071706]
[1770223074945,0.1231301,91.314,91.191,3.96071706]
[1770223075151,0.1231301,91.293,91.131,20.16772683]
[1770223075457,0.1231301,91.293,91.102,26.89030244]
[1770223075458,0.1231301,91.259,91.12,7.47502176]
[1770223075661,0.1231301,91.259,91.16,7.47502176]
[1770223075848,0.1231301,91.259,91.151,87.38]
[1770223076153,3.79388786,91.282,91.165,9.887]
[1770223076359,3.79388786,91.305,91.18,7.47502176]
[1770223076750,3.79388786,91.303,91.17,7.47502176]
[1770223077355,3.79388786,91.303,91.191,3.89785497]
[1770223077551,3.79388786,91.299,91.194,3.89785497]
[1770223078056,3.79388786,91.299,91.199,3.98792202]
[1770223078754,7.47502176,91.31,91.199,3.98792202]
[1770223078957,7.8396014,91.353,91.192,108.78]
[1770223078958,49.45877275,91.438,91.3,7.47502176]
[1770223079155,49.45877275,91.438,91.301,159.64]
[1770223079363,49.45877275,91.438,91.34,7.47502176]
[1770223080251,49.45877275,91.438,91.36,7.47502176]
[1770223080457,49.45877275,91.464,91.36,7.47502176]
[1770223080854,49.45877275,91.464,91.363,9.8656]
[1770223081054,49.78054652,91.515,91.41,7.47502176]
[1770223081259,49.78054652,91.542,91.435,9.8578]
[1770223081454,49.78054652,91.542,91.45,7.47502176]
[1770223081659,49.78054652,91.567,91.47,7.47502176]
[1770223081853,49.78054652,91.609,91.49,7.47502176]
[1770223082051,49.78054652,91.609,91.414,460.1375]
[1770223082052,49.78054652,91.609,91.47,7.47502176]
[1770223082260,49.78054652,91.609,91.461,98.92]
[1770223082261,49.78054652,91.589,91.461,98.92]
[1770223082458,153.0531,91.61,91.461,98.92]
[1770223082459,49.78054652,91.569,91.461,98.92]
[1770223082763,49.78054652,91.569,91.338,20.12607095]
[1770223082764,49.89153214,91.529,91.407,9.8608]
[1770223082959,49.89153214,91.529,91.401,153.4023]
[1770223083155,49.96077403,91.524,91.42,7.47502176]
[1770223083355,0.06924189,91.524,91.443,9.8569]
[1770223083551,49.89153214,91.553,91.443,9.8569]
[1770223083964,49.89153214,91.589,91.469,9.8542]
[1770223084156,49.89153214,91.589,91.47,175.12]
[1770223084461,49.89153214,91.589,91.46,7.47502176]
[1770223084462,49.89153214,91.589,91.447,9.8565]
[1770223084657,153.0955,91.585,91.451,175.08]
[1770223084858,153.1267,91.566,91.4,29.93792067]
[1770223085063,49.9643274,91.549,91.414,175.14]
[1770223085457,49.9643274,91.549,91.435,9.8578]
[1770223085658,49.9643274,91.549,91.414,175.14]
[1770223085955,49.9643274,91.549,91.415,175.56]
[1770223086255,153.1135,91.574,91.391,175.66]
[1770223086256,49.9643274,91.54,91.391,175.66]
[1770223086463,49.9643274,91.534,91.391,175.66]
[1770223086756,49.98173582,91.518,91.391,175.66]
[1770223087162,29.93792067,91.52,91.391,175.66]
[1770223087163,49.98173582,91.506,91.391,175.66]
[1770223087859,29.93792067,91.52,91.36,29.93792067]
[1770223087860,49.98173582,91.477,91.377,9.8641]
[1770223088057,49.98173582,91.477,91.366,176.02]
[1770223088259,49.98173582,91.459,91.352,175.98]
[1770223088461,49.98173582,91.459,91.354,9.8666]
[1770223089163,0.06894056,91.416,91.373,9.8645]
[1770223089461,49.82988245,91.483,91.36,29.93792067]
[1770223090156,49.82988245,91.539,91.371,153.4523]
[1770223090361,49.82988245,91.539,91.401,9.8615]
[1770223090561,9.8515,91.495,91.401,9.8615]
[1770223091266,49.78306409,91.506,91.401,9.8615]
[1770223091662,185.9559,91.579,91.34,153.5048]
[1770223091663,49.78306409,91.56,91.437,153.3415]
[1770223091962,49.78306409,91.56,91.42,29.93792067]
[1770223091963,49.78306409,91.585,91.469,153.2876]
[1770223092162,49.78306409,91.611,91.484,153.2627]
[1770223092367,49.78306409,91.636,91.51,29.93792067]
[1770223092558,49.78306409,91.636,91.516,153.2087]
[1770223092759,49.47372798,91.666,91.521,153.2003]
[1770223092961,49.47372798,91.666,91.554,153.1444]